[Event "GrandPrix_29.05"]
[Site "Chess.com"]
[Date "2020.05.29"]
[Round "3"]
[White "GoltsevDmitry2000"]
[Black "tianachess"]
[Result "1-0"]
[WhiteElo "2255"]
[BlackElo "2079"]
[TimeControl "600+2"]
[EndTime "10:21:28 PDT"]
[Termination "GoltsevDmitry2000 won by resignation"]

1. e4 {[%clk 0:09:50]} 1... Nf6 {[%clk 0:09:58.5]} 2. e5 {[%clk 0:09:50.1]} 2...
Nd5 {[%clk 0:09:58.9]} 3. d4 {[%clk 0:09:51.1]} 3... d6 {[%clk 0:09:59.3]} 4. c4
{[%clk 0:09:52.2]} 4... Nb6 {[%clk 0:09:59.7]} 5. exd6 {[%clk 0:09:54.1]} 5...
exd6 {[%clk 0:09:59.8]} 6. Nc3 {[%clk 0:09:55.5]} 6... Be7 {[%clk 0:09:59.8]} 7.
Bd3 {[%clk 0:09:56.1]} 7... Nc6 {[%clk 0:09:54.9]} 8. Nge2 {[%clk 0:09:54.2]}
8... Bg4 {[%clk 0:09:53]} 9. f3 {[%clk 0:09:53.4]} 9... Bh4+ {[%clk 0:09:22.8]}
10. Ng3 {[%clk 0:09:10.4]} 10... Bd7 {[%clk 0:09:06.9]} 11. Be3 {[%clk
0:09:06.9]} 11... O-O {[%clk 0:08:59.4]} 12. O-O {[%clk 0:09:05.6]} 12... Re8
{[%clk 0:08:49.9]} 13. Bf2 {[%clk 0:09:04.5]} 13... Bf6 {[%clk 0:08:28]} 14. Nh5
{[%clk 0:08:51.4]} 14... Bxd4 {[%clk 0:08:20.8]} 15. Bxd4 {[%clk 0:08:48.3]}
15... Nxd4 {[%clk 0:08:21.2]} 16. Bxh7+ {[%clk 0:08:48.3]} 16... Kxh7 {[%clk
0:08:21.1]} 17. Qxd4 {[%clk 0:08:49.8]} 17... Qg5 {[%clk 0:08:19.1]} 18. Nf4
{[%clk 0:08:19.1]} 18... Qe5 {[%clk 0:06:10.7]} 19. Qxe5 {[%clk 0:08:00.8]}
19... dxe5 {[%clk 0:06:11]} 20. Nfd5 {[%clk 0:08:01.8]} 20... Rac8 {[%clk
0:05:11.1]} 21. b3 {[%clk 0:07:55.5]} 21... Nxd5 {[%clk 0:03:45.6]} 22. Nxd5
{[%clk 0:07:54.9]} 22... c6 {[%clk 0:03:35.9]} 23. Ne3 {[%clk 0:07:20.8]} 23...
Be6 {[%clk 0:03:31.3]} 24. Rad1 {[%clk 0:07:20.5]} 24... Rcd8 {[%clk 0:03:31.5]}
25. Kf2 {[%clk 0:07:21.5]} 25... f5 {[%clk 0:03:27.1]} 26. Ke2 {[%clk 0:07:16]}
26... Kg6 {[%clk 0:03:27.1]} 27. Nc2 {[%clk 0:07:12.5]} 27... Kf6 {[%clk
0:03:25.9]} 28. Nb4 {[%clk 0:07:05.9]} 28... Ke7 {[%clk 0:03:21.4]} 29. Nd3
{[%clk 0:07:02.8]} 29... e4 {[%clk 0:03:20.5]} 30. Nc5 {[%clk 0:06:51.6]} 30...
exf3+ {[%clk 0:03:14.8]} 31. Kxf3 {[%clk 0:06:51.1]} 31... Rxd1 {[%clk
0:03:11.2]} 32. Rxd1 {[%clk 0:06:53]} 32... Bc8 {[%clk 0:03:11.6]} 33. Re1+
{[%clk 0:06:52.3]} 33... Kf7 {[%clk 0:03:10.4]} 34. Rxe8 {[%clk 0:06:54.2]}
34... Kxe8 {[%clk 0:03:11.5]} 35. Kf4 {[%clk 0:06:56.1]} 35... Kf7 {[%clk
0:03:07.4]} 36. Ke5 {[%clk 0:06:54.1]} 36... Ke7 {[%clk 0:03:03.4]} 37. h4
{[%clk 0:06:53.6]} 37... b6 {[%clk 0:02:59.8]} 38. Nd3 {[%clk 0:06:53.2]} 38...
c5 {[%clk 0:02:29.8]} 39. g3 {[%clk 0:06:50.4]} 39... Be6 {[%clk 0:01:57]} 40.
Nf4 {[%clk 0:06:49.1]} 40... Bc8 {[%clk 0:01:56.5]} 41. Ng2 {[%clk 0:06:48.6]}
41... Bb7 {[%clk 0:01:53]} 42. Ne3 {[%clk 0:06:47.3]} 42... g6 {[%clk
0:01:39.5]} 43. Nd5+ {[%clk 0:06:12.9]} 43... Bxd5 {[%clk 0:01:31.7]} 44. Kxd5
{[%clk 0:05:57.4]} 44... Kd7 {[%clk 0:01:30.4]} 45. Ke5 {[%clk 0:05:56]} 45...
Ke7 {[%clk 0:01:29]} 46. h5 {[%clk 0:05:49.5]} 46... gxh5 {[%clk 0:01:28]} 47.
Kxf5 {[%clk 0:05:48.9]} 1-0

[Event "GrandPrix_29.05"]
[Site "Chess.com"]
[Date "2020.05.29"]
[Round "3"]
[White "szachuspl"]
[Black "gummigisla"]
[Result "1-0"]
[WhiteElo "2306"]
[BlackElo "2112"]
[TimeControl "600+2"]
[EndTime "10:21:33 PDT"]
[Termination "szachuspl won by resignation"]

1. d4 {[%clk 0:10:01.9]} 1... Nf6 {[%clk 0:09:56]} 2. c4 {[%clk 0:10:02.1]} 2...
g6 {[%clk 0:09:55.4]} 3. Nc3 {[%clk 0:10:02.7]} 3... Bg7 {[%clk 0:09:56.1]} 4.
e4 {[%clk 0:10:03.5]} 4... d6 {[%clk 0:09:57.6]} 5. Be2 {[%clk 0:09:55.6]} 5...
O-O {[%clk 0:09:58.2]} 6. Nf3 {[%clk 0:09:55.3]} 6... Bg4 {[%clk 0:09:55.5]} 7.
Be3 {[%clk 0:09:47.9]} 7... Nc6 {[%clk 0:09:44.6]} 8. d5 {[%clk 0:09:44.5]} 8...
Nb8 {[%clk 0:09:44.3]} 9. O-O {[%clk 0:09:38.1]} 9... c5 {[%clk 0:09:39.3]} 10.
Qd2 {[%clk 0:09:26.9]} 10... a6 {[%clk 0:09:22.7]} 11. a4 {[%clk 0:09:24.9]}
11... b6 {[%clk 0:09:15.1]} 12. h3 {[%clk 0:09:25.5]} 12... Bd7 {[%clk
0:09:09.8]} 13. e5 {[%clk 0:08:59.8]} 13... Ne8 {[%clk 0:09:08.9]} 14. Bf4
{[%clk 0:09:00.3]} 14... Qc7 {[%clk 0:08:55.5]} 15. exd6 {[%clk 0:08:33.1]}
15... exd6 {[%clk 0:08:47.6]} 16. Ne4 {[%clk 0:08:29.3]} 16... Bf5 {[%clk
0:08:42.8]} 17. Ng3 {[%clk 0:08:26.4]} 17... Bc8 {[%clk 0:08:42.1]} 18. Bd3
{[%clk 0:08:19.1]} 18... Nd7 {[%clk 0:08:41.5]} 19. Rfe1 {[%clk 0:08:19.8]}
19... Ne5 {[%clk 0:08:37.9]} 20. Nxe5 {[%clk 0:08:12.4]} 20... dxe5 {[%clk
0:08:38.1]} 21. Bh6 {[%clk 0:08:13.2]} 21... f5 {[%clk 0:08:28.2]} 22. Bxg7
{[%clk 0:08:13.7]} 22... Nxg7 {[%clk 0:08:26.7]} 23. Qg5 {[%clk 0:08:00.3]}
23... e4 {[%clk 0:08:22.1]} 24. Bf1 {[%clk 0:07:53]} 24... Qd6 {[%clk
0:08:03.7]} 25. h4 {[%clk 0:07:40.8]} 25... Ra7 {[%clk 0:07:38.8]} 26. a5 {[%clk
0:07:34.5]} 26... Rb7 {[%clk 0:07:32.5]} 27. h5 {[%clk 0:07:10.9]} 27... bxa5
{[%clk 0:07:15.8]} 28. Rxa5 {[%clk 0:07:09.8]} 28... Rxb2 {[%clk 0:07:14.2]} 29.
h6 {[%clk 0:06:39.4]} 29... Ne8 {[%clk 0:07:03.9]} 30. Nh5 {[%clk 0:06:37.2]}
30... Nf6 {[%clk 0:06:41.1]} 31. Nf4 {[%clk 0:06:34.3]} 31... Ng4 {[%clk
0:06:37.4]} 32. Be2 {[%clk 0:06:27.2]} 32... Ne5 {[%clk 0:06:34.1]} 33. Ra3
{[%clk 0:06:22]} 33... Nf7 {[%clk 0:06:30.2]} 34. Qg3 {[%clk 0:06:19.3]} 34...
Nxh6 {[%clk 0:06:21.2]} 35. Qh4 {[%clk 0:05:39.4]} 35... Ng4 {[%clk 0:06:16.6]}
36. Qg3 {[%clk 0:05:22.3]} 36... Ne5 {[%clk 0:06:06.3]} 37. Qc3 {[%clk
0:05:14.1]} 37... Rb4 {[%clk 0:05:33.3]} 38. g3 {[%clk 0:04:49.6]} 38... g5
{[%clk 0:05:30.1]} 39. Nh5 {[%clk 0:04:48.6]} 39... f4 {[%clk 0:05:22.1]} 40.
Ra5 {[%clk 0:04:25.3]} 40... f3 {[%clk 0:05:15.9]} 41. Bf1 {[%clk 0:04:21.2]}
41... Bg4 {[%clk 0:05:10.1]} 42. Rxe4 {[%clk 0:04:08.8]} 42... Qg6 {[%clk
0:04:27.6]} 43. Qxe5 {[%clk 0:03:44.9]} 43... Qxh5 {[%clk 0:04:10.5]} 44. Rxa6
{[%clk 0:03:03.6]} 44... Bh3 {[%clk 0:04:01.1]} 45. Ra7 {[%clk 0:03:00.6]} 1-0

[Event "GrandPrix_29.05"]
[Site "Chess.com"]
[Date "2020.05.29"]
[Round "3"]
[White "Vuk2000"]
[Black "Tolya2"]
[Result "1-0"]
[WhiteElo "2172"]
[BlackElo "1842"]
[TimeControl "600+2"]
[EndTime "10:21:37 PDT"]
[Termination "Vuk2000 won by checkmate"]

1. d4 {[%clk 0:10:01.9]} 1... d5 {[%clk 0:09:59.5]} 2. Bf4 {[%clk 0:10:02.5]}
2... c5 {[%clk 0:09:58.4]} 3. e3 {[%clk 0:10:02.3]} 3... e6 {[%clk 0:09:58.1]}
4. c3 {[%clk 0:10:02.7]} 4... Nc6 {[%clk 0:09:58.2]} 5. Nd2 {[%clk 0:10:02.8]}
5... Bd6 {[%clk 0:09:58.6]} 6. Bg3 {[%clk 0:10:03]} 6... Nge7 {[%clk 0:09:57.9]}
7. Bd3 {[%clk 0:09:59]} 7... b6 {[%clk 0:09:58.2]} 8. Ngf3 {[%clk 0:09:57.6]}
8... Qc7 {[%clk 0:09:58.4]} 9. Qe2 {[%clk 0:09:29.2]} 9... e5 {[%clk 0:09:53.4]}
10. dxe5 {[%clk 0:09:28.4]} 10... Nxe5 {[%clk 0:09:53.8]} 11. Nxe5 {[%clk
0:09:09.4]} 11... Bxe5 {[%clk 0:09:53.8]} 12. Bb5+ {[%clk 0:09:10.5]} 12... Kf8
{[%clk 0:09:50.9]} 13. Nf3 {[%clk 0:07:45.3]} 13... Bxg3 {[%clk 0:09:48.1]} 14.
hxg3 {[%clk 0:07:47.2]} 14... h6 {[%clk 0:09:40.4]} 15. Rd1 {[%clk 0:07:41]}
15... Bg4 {[%clk 0:09:36.9]} 16. e4 {[%clk 0:07:31]} 16... Rd8 {[%clk 0:09:22]}
17. exd5 {[%clk 0:07:22.9]} 17... g6 {[%clk 0:08:47.2]} 18. O-O {[%clk
0:06:59.1]} 18... Rxd5 {[%clk 0:08:42]} 19. Rxd5 {[%clk 0:06:05.4]} 19... Nxd5
{[%clk 0:08:41.1]} 20. Bc4 {[%clk 0:06:06.4]} 20... Nf6 {[%clk 0:08:35.2]} 21.
Qe5 {[%clk 0:06:06.9]} 21... Qe7 {[%clk 0:08:07.6]} 22. Re1 {[%clk 0:06:01.7]}
22... Qd8 {[%clk 0:07:50]} 23. Re3 {[%clk 0:05:46.5]} 23... Kg7 {[%clk
0:07:37.4]} 24. Qe7 {[%clk 0:05:21.4]} 24... Rf8 {[%clk 0:07:17.1]} 25. Qxd8
{[%clk 0:05:05.3]} 25... Rxd8 {[%clk 0:07:16.6]} 26. Re7 {[%clk 0:05:06.3]}
26... Rd7 {[%clk 0:07:13.2]} 27. Re1 {[%clk 0:04:50.5]} 27... Bxf3 {[%clk
0:07:11]} 28. gxf3 {[%clk 0:04:52.4]} 28... Rd2 {[%clk 0:07:10.9]} 29. Re7
{[%clk 0:04:51.8]} 29... Rd7 {[%clk 0:07:07.8]} 30. Re2 {[%clk 0:04:50.3]} 30...
Kf8 {[%clk 0:06:57.4]} 31. Bb5 {[%clk 0:04:45.3]} 31... Rd1+ {[%clk 0:06:47.3]}
32. Kg2 {[%clk 0:04:45.3]} 32... h5 {[%clk 0:06:45.9]} 33. f4 {[%clk 0:04:41.5]}
33... a5 {[%clk 0:06:23]} 34. Ba4 {[%clk 0:04:33.2]} 34... Rb1 {[%clk
0:06:17.8]} 35. Rd2 {[%clk 0:04:28.1]} 35... Ke7 {[%clk 0:06:14.7]} 36. Bc6
{[%clk 0:04:24.5]} 36... Ra1 {[%clk 0:06:09]} 37. a4 {[%clk 0:04:24.4]} 37...
Rb1 {[%clk 0:06:03.1]} 38. Bb5 {[%clk 0:04:20.8]} 38... Ng4 {[%clk 0:05:55.9]}
39. Re2+ {[%clk 0:04:16.1]} 39... Kd6 {[%clk 0:05:49.5]} 40. Bc4 {[%clk
0:04:04.5]} 40... f6 {[%clk 0:05:40]} 41. Bf7 {[%clk 0:04:01.9]} 41... g5 {[%clk
0:05:24]} 42. Re6+ {[%clk 0:03:40.8]} 42... Kc7 {[%clk 0:05:18.1]} 43. fxg5
{[%clk 0:03:40.6]} 43... Rxb2 {[%clk 0:05:12]} 44. Bxh5 {[%clk 0:03:31.3]} 44...
Nxf2 {[%clk 0:05:05]} 45. Re2 {[%clk 0:03:22.7]} 45... Nd3 {[%clk 0:05:00.5]}
46. Rxb2 {[%clk 0:03:21.4]} 46... Nxb2 {[%clk 0:05:01.1]} 47. g6 {[%clk
0:03:21]} 47... b5 {[%clk 0:04:05.7]} 48. g7 {[%clk 0:03:19.7]} 48... bxa4
{[%clk 0:04:06.2]} 49. g8=Q {[%clk 0:03:19.7]} 49... a3 {[%clk 0:04:07.7]} 50.
Qf7+ {[%clk 0:03:19.3]} 50... Kb6 {[%clk 0:04:06.8]} 51. Qb3+ {[%clk 0:03:19.1]}
51... Kc6 {[%clk 0:04:07.1]} 52. Bf3+ {[%clk 0:03:18.7]} 52... Kd6 {[%clk
0:04:07.6]} 53. Qb6+ {[%clk 0:03:18.4]} 53... Ke5 {[%clk 0:04:07.5]} 54. Qxc5+
{[%clk 0:03:17.4]} 54... Ke6 {[%clk 0:04:05.1]} 55. Bd5+ {[%clk 0:03:17.6]}
55... Ke5 {[%clk 0:04:03.5]} 56. Bf7+ {[%clk 0:03:17.8]} 56... Ke4 {[%clk
0:04:03.4]} 57. Qd4+ {[%clk 0:03:19.7]} 57... Kf5 {[%clk 0:04:03.3]} 58. Qf4#
{[%clk 0:03:21.3]} 1-0

[Event "GrandPrix_29.05"]
[Site "Chess.com"]
[Date "2020.05.29"]
[Round "3"]
[White "Jaka_Brilej"]
[Black "Koksik_13"]
[Result "0-1"]
[WhiteElo "2160"]
[BlackElo "2087"]
[TimeControl "600+2"]
[EndTime "10:21:38 PDT"]
[Termination "Koksik_13 won by resignation"]

1. e4 {[%clk 0:10:01.9]} 1... e6 {[%clk 0:10:00.9]} 2. d4 {[%clk 0:10:01.8]}
2... d5 {[%clk 0:10:01.3]} 3. Nc3 {[%clk 0:10:02.3]} 3... Bb4 {[%clk 0:10:01.7]}
4. e5 {[%clk 0:10:03]} 4... c5 {[%clk 0:10:02.3]} 5. a3 {[%clk 0:10:00.5]} 5...
Bxc3+ {[%clk 0:10:03.3]} 6. bxc3 {[%clk 0:10:01.2]} 6... Ne7 {[%clk 0:10:04.7]}
7. Qg4 {[%clk 0:09:59.2]} 7... Qc7 {[%clk 0:10:02.9]} 8. Qxg7 {[%clk 0:09:57]}
8... Rg8 {[%clk 0:10:04]} 9. Qxh7 {[%clk 0:09:57.8]} 9... cxd4 {[%clk
0:10:05.1]} 10. Ne2 {[%clk 0:09:58.3]} 10... Nbc6 {[%clk 0:10:06.2]} 11. Bf4
{[%clk 0:09:42.1]} 11... dxc3 {[%clk 0:10:04.1]} 12. Ng3 {[%clk 0:09:01.8]}
12... Bd7 {[%clk 0:10:04.2]} 13. Bb5 {[%clk 0:08:51.8]} 13... O-O-O {[%clk
0:10:04.3]} 14. O-O {[%clk 0:08:46.4]} 14... Rh8 {[%clk 0:09:59.2]} 15. Qd3
{[%clk 0:08:46.1]} 15... Nxe5 {[%clk 0:09:55.9]} 16. Bxd7+ {[%clk 0:08:37.8]}
16... Rxd7 {[%clk 0:09:55]} 17. Qe3 {[%clk 0:08:24.8]} 17... N7g6 {[%clk
0:09:54.1]} 18. Bxe5 {[%clk 0:08:16.9]} 18... Qxe5 {[%clk 0:09:55]} 19. Qxa7
{[%clk 0:08:17.5]} 19... Rc7 {[%clk 0:09:40.4]} 20. Rfe1 {[%clk 0:07:57.9]}
20... Qd6 {[%clk 0:09:39.4]} 21. Rab1 {[%clk 0:07:40]} 21... Qc5 {[%clk
0:09:37.5]} 22. Qa4 {[%clk 0:07:01.5]} 22... Qc6 {[%clk 0:09:31.9]} 23. Qb4
{[%clk 0:06:31.4]} 23... Rh4 {[%clk 0:09:25.4]} 24. Qb3 {[%clk 0:06:19.6]} 24...
Qc4 {[%clk 0:09:24.6]} 25. Qb6 {[%clk 0:06:08.7]} 25... Qa6 {[%clk 0:09:23.2]}
26. Qe3 {[%clk 0:05:58.6]} 26... Nf4 {[%clk 0:09:14.5]} 27. Qf3 {[%clk
0:05:27.9]} 27... Qa4 {[%clk 0:08:47.6]} 28. Rb3 {[%clk 0:04:32.9]} 28... Qd4
{[%clk 0:08:30.6]} 29. Rd1 {[%clk 0:04:07.1]} 29... Qc4 {[%clk 0:08:27]} 30. Rb4
{[%clk 0:03:57.4]} 30... Qa2 {[%clk 0:08:16.3]} 31. Rxf4 {[%clk 0:03:53.7]}
31... Rxf4 {[%clk 0:08:18.2]} 32. Qxf4 {[%clk 0:03:53.6]} 32... Qxc2 {[%clk
0:08:19.7]} 33. Rc1 {[%clk 0:03:54.2]} 33... Qd2 {[%clk 0:08:14.1]} 34. Nh5
{[%clk 0:03:38.1]} 34... e5 {[%clk 0:07:57.7]} 35. Qg4+ {[%clk 0:03:29.7]} 35...
Kb8 {[%clk 0:07:57.7]} 36. Qd1 {[%clk 0:03:25.4]} 36... Qxd1+ {[%clk 0:07:52.9]}
37. Rxd1 {[%clk 0:03:25.7]} 37... d4 {[%clk 0:07:54.8]} 38. Ng3 {[%clk 0:03:14]}
38... d3 {[%clk 0:07:55.7]} 39. Ne4 {[%clk 0:03:14.8]} 39... f5 {[%clk
0:07:52.1]} 40. Nxc3 {[%clk 0:03:04.9]} 40... Rxc3 {[%clk 0:07:54]} 41. h4
{[%clk 0:03:06.5]} 41... e4 {[%clk 0:07:54.4]} 42. h5 {[%clk 0:03:05.8]} 42...
Rxa3 {[%clk 0:07:55.9]} 43. h6 {[%clk 0:03:03.8]} 43... Ra6 {[%clk 0:07:56.7]}
44. f3 {[%clk 0:03:03.9]} 44... Rxh6 {[%clk 0:07:57.3]} 45. fxe4 {[%clk
0:03:05.1]} 45... fxe4 {[%clk 0:07:59.2]} 46. Kf2 {[%clk 0:03:06.1]} 46... Rg6
{[%clk 0:07:55.8]} 47. Ke3 {[%clk 0:03:04.6]} 47... Rxg2 {[%clk 0:07:56.5]} 48.
Kxe4 {[%clk 0:03:04.3]} 48... d2 {[%clk 0:07:58]} 49. Ke3 {[%clk 0:03:05.2]}
49... b6 {[%clk 0:07:56.9]} 50. Kf3 {[%clk 0:03:05.4]} 50... Rh2 {[%clk
0:07:57.4]} 51. Kg3 {[%clk 0:03:06.6]} 51... Re2 {[%clk 0:07:52.9]} 52. Kf3
{[%clk 0:03:07.5]} 52... Re5 {[%clk 0:07:52.8]} 53. Rxd2 {[%clk 0:03:08.1]}
53... Kb7 {[%clk 0:07:54.3]} 54. Rb2 {[%clk 0:03:03.8]} 54... Kc6 {[%clk
0:07:52.5]} 55. Rc2+ {[%clk 0:03:04.8]} 55... Kb5 {[%clk 0:07:53.5]} 56. Rb2+
{[%clk 0:03:04.3]} 56... Ka6 {[%clk 0:07:47.6]} 57. Kf4 {[%clk 0:03:01.3]} 57...
Re1 {[%clk 0:07:46.7]} 58. Ra2+ {[%clk 0:02:59.6]} 58... Kb7 {[%clk 0:07:47.6]}
59. Rb2 {[%clk 0:03:00.8]} 59... Re8 {[%clk 0:07:43.5]} 60. Rb1 {[%clk
0:02:59.3]} 60... Re2 {[%clk 0:07:33.7]} 61. Kf3 {[%clk 0:02:57.8]} 61... Re6
{[%clk 0:07:34.2]} 62. Kf4 {[%clk 0:02:59.1]} 62... Ka6 {[%clk 0:07:29.2]} 63.
Ra1+ {[%clk 0:02:57.9]} 63... Kb5 {[%clk 0:07:29.8]} 64. Rb1+ {[%clk 0:02:59.1]}
64... Ka4 {[%clk 0:07:30.5]} 65. Ra1+ {[%clk 0:03:00.1]} 65... Kb3 {[%clk
0:06:55.4]} 66. Rb1+ {[%clk 0:03:00.6]} 66... Kc2 {[%clk 0:06:54.8]} 67. Rb5
{[%clk 0:02:30.9]} 67... Kc3 {[%clk 0:06:55.6]} 68. Kf5 {[%clk 0:02:27.9]} 68...
Rh6 {[%clk 0:06:57.1]} 69. Ke4 {[%clk 0:02:27.9]} 69... Kc4 {[%clk 0:06:58.5]}
70. Rb1 {[%clk 0:02:28.1]} 70... b5 {[%clk 0:06:59.3]} 71. Rc1+ {[%clk
0:02:28.4]} 71... Kb4 {[%clk 0:06:57]} 72. Kd3 {[%clk 0:02:29.3]} 72... Rd6+
{[%clk 0:06:55.9]} 73. Ke3 {[%clk 0:02:21.6]} 73... Ka3 {[%clk 0:06:56.5]} 74.
Rc8 {[%clk 0:02:16.4]} 74... b4 {[%clk 0:06:57]} 75. Ra8+ {[%clk 0:02:15.9]}
75... Kb2 {[%clk 0:06:58]} 76. Rb8 {[%clk 0:02:17.5]} 76... b3 {[%clk
0:06:59.4]} 77. Rb7 {[%clk 0:02:18.9]} 77... Ka2 {[%clk 0:07:00.6]} 78. Rb8
{[%clk 0:02:16.5]} 78... b2 {[%clk 0:07:01.6]} 79. Ra8+ {[%clk 0:02:17.1]} 79...
Kb1 {[%clk 0:07:03]} 80. Rb8 {[%clk 0:02:18]} 80... Ra6 {[%clk 0:07:04]} 81. Kd2
{[%clk 0:02:10.6]} 81... Ka1 {[%clk 0:07:04.3]} 82. Kc2 {[%clk 0:02:07.3]} 82...
Rc6+ {[%clk 0:07:05.2]} 0-1

[Event "GrandPrix_29.05"]
[Site "Chess.com"]
[Date "2020.05.29"]
[Round "3"]
[White "VMikhalevski"]
[Black "Pidzsy"]
[Result "1-0"]
[WhiteElo "2391"]
[BlackElo "2052"]
[TimeControl "600+2"]
[EndTime "10:21:42 PDT"]
[Termination "VMikhalevski won by resignation"]

1. Nf3 {[%clk 0:10:00.6]} 1... c5 {[%clk 0:09:56.7]} 2. g3 {[%clk 0:09:57.5]}
2... Nc6 {[%clk 0:09:56.2]} 3. Bg2 {[%clk 0:09:52.7]} 3... g6 {[%clk 0:09:57.6]}
4. c4 {[%clk 0:09:37.7]} 4... Bg7 {[%clk 0:09:58.4]} 5. Nc3 {[%clk 0:09:38.7]}
5... e5 {[%clk 0:09:57.7]} 6. O-O {[%clk 0:09:35.6]} 6... d6 {[%clk 0:09:59.1]}
7. Ne1 {[%clk 0:09:22.2]} 7... Be6 {[%clk 0:09:58.3]} 8. d3 {[%clk 0:09:18.1]}
8... Nge7 {[%clk 0:09:58.3]} 9. Nc2 {[%clk 0:09:17.1]} 9... d5 {[%clk
0:09:57.6]} 10. cxd5 {[%clk 0:09:14.2]} 10... Nxd5 {[%clk 0:09:59.5]} 11. Ne3
{[%clk 0:09:13.3]} 11... Nde7 {[%clk 0:09:58.8]} 12. Nc4 {[%clk 0:09:06.3]}
12... O-O {[%clk 0:09:56.5]} 13. Be3 {[%clk 0:08:42.7]} 13... b6 {[%clk
0:09:43]} 14. Qc1 {[%clk 0:08:42]} 14... Rc8 {[%clk 0:09:38.6]} 15. Bh6 {[%clk
0:08:41.4]} 15... Bxh6 {[%clk 0:09:25.4]} 16. Qxh6 {[%clk 0:08:41.1]} 16... Nf5
{[%clk 0:09:27.1]} 17. Qc1 {[%clk 0:08:37.3]} 17... Nfd4 {[%clk 0:09:23.3]} 18.
e3 {[%clk 0:08:27.6]} 18... Nb4 {[%clk 0:09:01]} 19. Nxe5 {[%clk 0:07:34.4]}
19... Qf6 {[%clk 0:06:42.2]} 20. f4 {[%clk 0:07:11]} 20... Rfd8 {[%clk
0:05:38.9]} 21. exd4 {[%clk 0:06:48]} 21... cxd4 {[%clk 0:05:39.8]} 22. Ne4
{[%clk 0:06:49]} 22... Qe7 {[%clk 0:05:41.1]} 23. Qd2 {[%clk 0:06:16.1]} 23...
Rc2 {[%clk 0:05:35.1]} 24. Qd1 {[%clk 0:06:16.9]} 24... Rxb2 {[%clk 0:05:24.4]}
25. a3 {[%clk 0:06:07.3]} 25... Nd5 {[%clk 0:05:12.5]} 26. Qc1 {[%clk
0:05:43.9]} 26... Rxg2+ {[%clk 0:05:05.2]} 27. Kxg2 {[%clk 0:05:43.9]} 27...
Ne3+ {[%clk 0:05:06.1]} 28. Kg1 {[%clk 0:05:44.1]} 28... Rc8 {[%clk 0:05:02.4]}
29. Qb2 {[%clk 0:05:37]} 29... f5 {[%clk 0:03:45.4]} 30. Rfc1 {[%clk 0:04:47.2]}
30... fxe4 {[%clk 0:03:31.4]} 31. Rxc8+ {[%clk 0:04:46.9]} 31... Bxc8 {[%clk
0:03:33.2]} 32. Qxd4 {[%clk 0:04:45.9]} 32... Nf5 {[%clk 0:03:17.8]} 33. Qc3
{[%clk 0:03:43.7]} 33... Bb7 {[%clk 0:03:05.6]} 34. dxe4 {[%clk 0:03:44.3]}
34... Nd6 {[%clk 0:03:06.8]} 35. Rd1 {[%clk 0:03:32]} 35... Kf8 {[%clk
0:02:26.9]} 36. Qb4 {[%clk 0:03:21.5]} 1-0

[Event "GrandPrix_29.05"]
[Site "Chess.com"]
[Date "2020.05.29"]
[Round "3"]
[White "lilleper1"]
[Black "Sunerorlater"]
[Result "1-0"]
[WhiteElo "2341"]
[BlackElo "2298"]
[TimeControl "600+2"]
[EndTime "10:21:44 PDT"]
[Termination "lilleper1 won by resignation"]

1. d4 {[%clk 0:09:58.5]} 1... Nf6 {[%clk 0:09:52.2]} 2. c4 {[%clk 0:09:57.6]}
2... c5 {[%clk 0:09:52.3]} 3. d5 {[%clk 0:09:55.7]} 3... e5 {[%clk 0:09:52.8]}
4. Nc3 {[%clk 0:09:49.9]} 4... d6 {[%clk 0:09:53.3]} 5. e4 {[%clk 0:09:47.6]}
5... Be7 {[%clk 0:09:53.3]} 6. Bd3 {[%clk 0:09:46.9]} 6... Nbd7 {[%clk 0:09:53]}
7. Nge2 {[%clk 0:09:30.1]} 7... h5 {[%clk 0:09:48.4]} 8. f3 {[%clk 0:08:50.6]}
8... a6 {[%clk 0:09:24.6]} 9. a4 {[%clk 0:08:49.2]} 9... Nh7 {[%clk 0:09:24]}
10. g3 {[%clk 0:08:38.2]} 10... h4 {[%clk 0:09:18.1]} 11. f4 {[%clk 0:07:32.6]}
11... Nhf6 {[%clk 0:09:11.9]} 12. f5 {[%clk 0:06:59.4]} 12... hxg3 {[%clk
0:09:06.5]} 13. Nxg3 {[%clk 0:06:59.3]} 13... Ng8 {[%clk 0:08:43.4]} 14. Qg4
{[%clk 0:05:51.3]} 14... Rh7 {[%clk 0:08:38.5]} 15. Bd2 {[%clk 0:05:39.3]} 15...
Ndf6 {[%clk 0:08:15.9]} 16. Qf3 {[%clk 0:05:38.5]} 16... Bd7 {[%clk 0:07:59.8]}
17. O-O-O {[%clk 0:05:25]} 17... Qb6 {[%clk 0:07:40.1]} 18. Kc2 {[%clk
0:05:14.6]} 18... Qc7 {[%clk 0:07:06.9]} 19. Ra1 {[%clk 0:05:08.3]} 19... Rb8
{[%clk 0:06:59.4]} 20. h4 {[%clk 0:05:06]} 20... Kf8 {[%clk 0:06:44.1]} 21. h5
{[%clk 0:05:03.8]} 21... Nh6 {[%clk 0:06:43]} 22. Nge2 {[%clk 0:04:45.4]} 22...
b5 {[%clk 0:06:37.8]} 23. axb5 {[%clk 0:04:32.5]} 23... axb5 {[%clk 0:06:37]}
24. b3 {[%clk 0:04:25.2]} 24... b4 {[%clk 0:06:29]} 25. Nb5 {[%clk 0:04:18.2]}
25... Bxb5 {[%clk 0:05:20.3]} 26. cxb5 {[%clk 0:04:18.8]} 26... Bd8 {[%clk
0:05:21.8]} 27. Ra6 {[%clk 0:03:59.9]} 27... Nhg8 {[%clk 0:05:06.8]} 28. Ng3
{[%clk 0:03:41.5]} 28... Ne7 {[%clk 0:04:49.9]} 29. h6 {[%clk 0:03:31.8]} 29...
gxh6 {[%clk 0:04:37.7]} 30. Bxh6+ {[%clk 0:03:06.5]} 30... Ke8 {[%clk
0:04:36.9]} 31. Bg5 {[%clk 0:03:03.8]} 31... Rxh1 {[%clk 0:04:11.5]} 32. Qxh1
{[%clk 0:03:01.6]} 32... Neg8 {[%clk 0:04:13]} 33. Qh8 {[%clk 0:02:50.4]} 33...
Kd7 {[%clk 0:04:10.6]} 34. Qg7 {[%clk 0:02:40.8]} 34... Ke8 {[%clk 0:03:51.8]}
35. Nh5 {[%clk 0:02:12.1]} 35... Qe7 {[%clk 0:03:52.1]} 36. b6 {[%clk
0:01:52.8]} 1-0